bitfinex-derivatives/quotes_SOLF0:USTF0_20241212
["timestamp","ask_amount","ask_price","bid_price","bid_amount"]
[1733998359985,2.17457487,229.93,229.82,12.88665641]
[1733998360575,2.17457487,229.93,229.81,1.3826]
[1733998360778,2.17457487,229.93,229.89,2.1741]
[1733998361076,2.17457487,229.93,229.82,12.88665641]
[1733998361285,2.17457487,229.93,229.91,2.1739]
[1733998361477,2.17457487,229.93,229.85,12.88665641]
[1733998362385,2.17457487,229.93,229.92,2.1739]
[1733998363779,0.60791,229.96,229.95,2.1736]
[1733998364281,0.60791,229.96,229.94,2.1737]
[1733998364483,0.60791,229.96,229.85,5.27506989]
[1733998364791,0.60791,229.96,229.89,2.1741]
[1733998364984,0.60791,229.96,229.85,5.27506989]
[1733998365183,2.78141,229.96,229.85,5.27506989]
[1733998365587,0.60791,229.96,229.85,5.27506989]
[1733998366183,0.60791,229.96,229.89,2.1741]
[1733998366790,3.10791,229.96,229.89,2.1741]
[1733998367591,2.1736,229.95,229.89,2.1741]
[1733998371087,2.1736,229.95,229.9,2.174]
[1733998371594,2.1738,229.93,229.88,2.1742]
[1733998371994,2.17438573,229.95,229.84,5.17874524]
[1733998372192,2.17438573,229.95,229.81,21.9786549]
[1733998372389,2.17438573,229.95,229.76,5.29879275]
[1733998372390,20.5960549,229.92,229.76,5.29879275]
[1733998372595,2.17438573,229.95,229.67,20.5960549]
[1733998372596,20.5960549,229.88,229.67,20.5960549]
[1733998372799,2.1748,229.82,229.77,2.1753]
[1733998372995,4.6348,229.82,229.77,2.1753]
[1733998373397,2.46,229.82,229.77,2.1753]
[1733998374689,2.46,229.82,229.72,5.30938505]
[1733998375502,2.46,229.82,229.78,2.1751]
[1733998375694,2.46,229.82,229.72,5.30938505]
[1733998375996,2.46,229.82,229.72,7.76938505]
[1733998377402,2.46,229.82,229.72,5.30938505]
[1733998378599,2.46,229.82,229.76,2.1753]
[1733998379002,2.17571036,229.81,229.72,5.30938505]
[1733998379398,2.17571036,229.81,229.8,2.175]
[1733998384807,2.46,229.88,229.84,2.1746]
[1733998385009,2.46,229.94,229.81,2.46]
[1733998385307,2.46,229.94,229.87,2.1743]
[1733998385507,2.46,229.94,229.84,12.87916728]
[1733998385805,12.87916728,229.99,229.84,12.87916728]
[1733998386001,2.1735,229.96,229.84,12.87916728]
[1733998386608,2.1735,229.96,229.91,2.174]
[1733998386910,2.46,229.98,229.91,2.174]
[1733998387608,4.6333,229.98,229.93,2.1737]
[1733998387810,12.87916728,230.02,229.87,15.33916728]
[1733998388009,2.46,230.01,229.9,12.87916728]
[1733998388208,2.1731,230.0,229.95,2.1735]
[1733998388510,2.46,230.01,229.9,12.87916728]
[1733998388912,2.46,230.01,229.99,2.1732]
[1733998389610,2.46,230.01,229.93,2.1737]
[1733998389802,15.33916728,230.05,229.92,2.46]
[1733998390308,15.33916728,230.05,229.9,12.87916728]
[1733998390309,12.87916728,230.02,229.91,2.46]
[1733998390805,2.1731,230.0,229.96,2.1734]
[1733998391010,2.74869,230.0,229.91,2.46]
[1733998391701,2.74869,230.0,229.96,2.1735]
[1733998394107,0.57559,230.0,229.89,1.3158]
[1733998394308,0.57559,230.0,229.88,10.62067799]
[1733998394309,3.03559,230.0,229.88,8.16067799]
[1733998394614,12.87916728,229.99,229.88,2.8889]
[1733998395318,2.1735,229.97,229.91,2.1739]
[1733998395512,3.03559,230.0,229.88,2.8889]
[1733998395814,3.03559,230.0,229.9,12.87916728]
[1733998396011,2.1732,229.99,229.93,2.1738]
[1733998396410,2.1732,229.99,229.9,12.87916728]
[1733998398113,3.03559,230.0,229.9,12.87916728]
[1733998398416,0.57559,230.0,229.9,12.87916728]
[1733998398615,0.57559,230.0,229.99,2.1732]
[1733998398815,62.87916728,230.09,229.96,12.87916728]
[1733998399013,50.0,230.09,230.02,2.1728]
[1733998399216,50.0,230.09,229.99,12.87916728]
[1733998400713,2.1723,230.08,230.02,2.1729]
[1733998400913,50.0,230.09,230.02,2.1729]
[1733998401813,50.0,230.09,229.99,12.87916728]
[1733998402010,52.1723,230.09,230.03,2.1727]
[1733998402212,62.87916728,230.09,229.92,12.87916728]
[1733998402414,12.87916728,230.06,229.92,12.87916728]
[1733998402612,12.87916728,230.03,229.94,2.1736]
[1733998403213,2.1731,230.0,229.95,2.1735]
[1733998403417,2.1731,230.0,229.91,1.3283]
[1733998403714,2.38,230.05,229.92,12.87916728]
[1733998404220,2.1728,230.04,229.98,2.1733]
[1733998404416,2.38,230.05,229.98,2.1733]
[1733998405013,2.1729,230.03,229.98,2.1733]
[1733998406113,2.1727,230.04,229.92,14.21016728]
[1733998406921,2.1727,230.04,230.0,2.1731]
[1733998407718,62.87916728,230.09,229.94,2.38]
[1733998407918,2.1726,230.05,230.01,2.173]
[1733998408922,2.1726,230.05,229.95,12.87916728]
[1733998410213,2.1726,230.05,230.0,2.173]
[1733998410416,2.1726,230.05,229.95,12.87916728]
[1733998410617,2.38,230.08,229.95,12.87916728]
[1733998410818,2.1725,230.07,229.95,12.87916728]
[1733998411218,2.38,230.08,229.95,12.87916728]
[1733998411424,2.38,230.08,229.95,15.25916728]
[1733998411620,2.38,230.08,229.99,2.1731]
[1733998412015,12.87916728,230.06,229.92,1.331]
[1733998412226,2.1732,230.0,229.95,2.1736]
[1733998412717,2.1732,230.0,229.92,1.331]
[1733998412917,2.173,230.02,229.98,2.1733]
[1733998413118,2.38,230.03,229.92,1.331]
[1733998413822,2.38,230.03,229.94,12.87916728]
[1733998414024,2.38,230.07,229.95,2.38]
[1733998414228,2.1725,230.06,229.97,12.87916728]
[1733998414424,2.38,230.07,229.97,12.87916728]
[1733998415323,2.38,230.07,230.03,2.1728]
[1733998415725,2.1724,230.08,230.03,2.1728]
[1733998415918,2.1724,230.07,230.03,2.1728]
[1733998416118,2.1724,230.07,230.02,2.1729]
[1733998417921,50.0,230.09,229.98,2.38]
[1733998418126,50.0,230.09,230.0,12.87916728]
[1733998418325,50.0,230.09,230.06,2.1725]
[1733998419026,50.0,230.09,230.0,12.87916728]
[1733998419027,50.0,230.09,230.08,2.1723]
[1733998420730,3.8297,230.19,230.15,2.1716]
[1733998420922,2.38,230.19,230.15,2.1716]
[1733998421127,16.94026728,230.27,230.12,12.87916728]
[1733998421330,2.38,230.23,230.18,2.1713]
[1733998421527,2.38,230.23,230.15,12.87916728]
[1733998421930,15.25916728,230.23,230.06,2.38]
[1733998422135,15.25916728,230.23,230.09,12.87916728]
[1733998422525,15.25916728,230.23,230.14,2.1718]
[1733998423531,2.1714,230.18,230.14,2.1718]
[1733998423727,15.25916728,230.23,230.09,12.87916728]
[1733998423930,15.25916728,230.23,230.08,2.38]
[1733998424531,2.1716,230.16,230.08,2.38]
[1733998424827,2.1716,230.16,230.06,12.87916728]
[1733998425031,2.1716,230.16,230.07,2.38]
[1733998425236,2.1715,230.18,230.07,2.38]
[1733998425439,15.25916728,230.23,230.09,12.87916728]
[1733998425633,15.25916728,230.23,230.12,2.1719]
[1733998425830,12.87916728,230.2,230.06,12.87916728]
[1733998426034,12.87916728,230.2,230.04,1.3474]
[1733998426035,12.87916728,230.17,230.04,2.38]
[1733998426335,6.5937,230.16,230.04,2.38]
[1733998426533,6.5937,230.16,230.0,16.58286728]
[1733998426734,12.87916728,230.14,230.04,2.1727]
[1733998426934,6.5937,230.16,230.0,15.25916728]
[1733998427134,2.172,230.13,230.03,12.87916728]
[1733998427935,2.172,230.13,230.07,2.1724]
[1733998428238,2.172,230.13,230.03,12.87916728]
[1733998428634,2.172,230.13,230.07,2.1724]
[1733998428834,6.5937,230.16,230.03,12.87916728]
[1733998429029,2.1718,230.15,230.03,12.87916728]
[1733998429229,2.1718,230.15,230.09,2.1722]
[1733998429734,2.1718,230.15,230.03,12.87916728]
[1733998430540,2.1718,230.15,230.1,2.1721]
[1733998430743,12.87916728,230.23,230.09,12.87916728]
[1733998430938,2.32,230.22,230.09,12.87916728]
[1733998431443,12.87916728,230.23,230.09,12.87916728]
[1733998431736,2.1712,230.21,230.16,2.1716]
[1733998431941,12.87916728,230.2,230.07,2.32]
[1733998432141,12.87916728,230.2,230.06,12.87916728]
[1733998432343,12.87916728,230.2,230.05,2.32]
[1733998433340,2.1719,230.13,230.08,2.1723]
[1733998433639,2.32,230.16,230.05,2.32]
[1733998434237,2.1718,230.15,230.1,2.1721]
[1733998434741,2.32,230.16,230.1,2.1721]
[1733998435133,2.32,230.16,230.06,2.1725]
[1733998435333,12.87916728,230.14,230.06,2.1725]
[1733998435535,12.87916728,230.14,230.01,3.7744]
[1733998435536,12.87916728,230.14,230.01,2.32]
[1733998435836,2.1723,230.09,230.04,2.1726]
[1733998436740,2.1723,230.09,230.04,2.1727]
[1733998436942,2.1723,230.09,230.01,2.32]
[1733998438444,2.1723,230.09,230.04,2.1726]
[1733998438649,2.1724,230.08,230.01,2.32]
[1733998439339,2.1723,230.09,230.01,2.32]
[1733998439535,2.32,230.11,230.01,2.32]
[1733998440136,2.1722,230.1,230.04,2.1727]
[1733998440342,2.32,230.11,230.04,2.1727]
[1733998440535,2.32,230.11,230.01,2.32]
[1733998440740,2.1723,230.08,230.02,2.1728]
[1733998440937,2.32,230.11,230.01,2.32]
[1733998441141,2.1723,230.08,230.02,2.1728]
[1733998441341,2.32,230.11,230.01,2.32]
[1733998441742,2.1724,230.08,230.01,2.32]
[1733998441940,2.32,230.11,230.01,2.32]
[1733998442139,2.32,230.11,229.98,1.3764]
[1733998442346,2.1728,230.04,229.99,7.41086641]
[1733998442543,2.32,230.06,229.95,0.25806]
[1733998442745,2.1729,230.02,229.97,2.1734]
[1733998443147,2.32,230.05,229.95,0.25806]
[1733998443443,2.1729,230.02,229.96,2.1734]
[1733998443641,2.1729,230.02,229.95,0.25806]
[1733998444148,2.1729,230.02,229.97,2.1734]
[1733998445148,2.32,230.04,230.0,2.173]
[1733998445744,4.4927,230.04,230.0,2.173]
[1733998446247,4.4927,230.04,229.95,0.25806]
[1733998446452,2.1729,230.03,229.95,0.25806]
[1733998446647,2.32,230.04,229.95,0.25806]
[1733998446845,2.32,230.04,229.99,2.1732]
[1733998447754,2.1729,230.02,229.99,2.1732]
[1733998448446,2.32,230.04,229.95,0.25806]
[1733998448747,4.1124,230.03,229.95,0.25806]
[1733998449151,4.1124,230.03,229.95,2.43166]
[1733998449954,4.1124,230.03,229.95,0.25806]
[1733998450150,2.1731,230.0,229.97,2.1734]
[1733998450850,4.1124,230.03,229.96,2.1735]
[1733998451046,4.1124,230.03,229.95,0.25806]
[1733998451249,2.1735,229.96,229.95,0.25806]
[1733998452447,2.1735,229.96,229.85,1.4458]
[1733998452448,12.87916728,229.96,229.85,2.1744]
[1733998452652,12.87916728,229.96,229.83,5.23116741]
[1733998452849,12.87916728,229.96,229.83,18.11033469]
[1733998453055,2.34,229.95,229.85,2.1745]
[1733998453250,2.34,229.95,229.83,5.23116741]
[1733998453452,2.1742,229.89,229.79,16.58126728]
[1733998453658,2.1742,229.89,229.84,2.1746]
[1733998454860,2.34,229.9,229.82,18.00802888]
[1733998455158,2.34,229.9,229.85,12.87916728]
[1733998455361,2.34,229.9,229.88,2.1742]
[1733998455555,2.34,229.9,229.85,12.87916728]
[1733998455959,2.34,229.9,229.82,5.1288616]
[1733998455960,2.34,229.9,229.82,18.00802888]
[1733998456259,4.5141,229.9,229.82,18.00802888]
[1733998456456,4.5141,229.9,229.84,2.1746]
[1733998456757,4.5141,229.9,229.82,18.00802888]
[1733998457165,2.1742,229.89,229.82,18.00802888]
[1733998457357,2.34,229.9,229.82,18.00802888]
[1733998457759,2.1742,229.89,229.83,2.1747]
[1733998458057,2.34,229.9,229.82,18.00802888]
[1733998458653,2.34,229.9,229.85,2.1745]
[1733998458855,3.6663,229.94,229.85,12.87916728]
[1733998459452,2.34,229.95,229.85,12.87916728]
[1733998459659,2.7229,230.01,229.88,12.87916728]
[1733998459660,6.57728615,230.0,229.88,12.87916728]
[1733998459863,2.34,229.99,229.91,12.87916728]
[1733998460056,2.34,229.99,229.88,12.87916728]
[1733998460454,2.174,229.91,229.88,2.1742]
[1733998460653,2.174,229.91,229.85,12.87916728]
[1733998461058,2.1742,229.89,229.85,15.05366728]
[1733998461459,2.28,229.94,229.85,15.05366728]
[1733998461660,2.28,229.94,229.86,2.1744]
[1733998462364,2.174,229.91,229.86,2.1744]
[1733998462560,2.174,229.91,229.85,12.87916728]
[1733998462561,2.174,229.91,229.87,2.1743]
[1733998463265,2.1739,229.92,229.88,2.1742]
[1733998463462,2.28,229.94,229.85,12.87916728]
[1733998464361,2.1738,229.93,229.87,2.1743]
[1733998464561,2.1738,229.93,229.85,12.87916728]
[1733998465067,2.1738,229.93,229.89,2.1741]
[1733998465663,2.28,229.94,229.85,2.1744]
[1733998465969,2.28,229.94,229.79,12.87916728]
[1733998466363,2.28,229.94,229.83,2.1746]
[1733998466560,2.28,229.94,229.79,12.87916728]
[1733998467162,12.87916728,229.93,229.79,18.00452215]
[1733998467771,2.1743,229.88,229.84,2.1746]
[1733998467970,2.28,229.89,229.79,18.00452215]
[1733998468170,2.28,229.89,229.82,12.87916728]
[1733998468373,2.28,229.89,229.87,2.1743]
[1733998468664,12.87916728,229.99,229.82,12.87916728]
[1733998468873,4.45410209,229.98,229.85,12.87916728]
[1733998469173,2.17419663,229.97,229.85,12.87916728]
[1733998469761,2.1738,229.93,229.89,2.1741]
[1733998469970,4.4538,229.93,229.89,2.1741]
[1733998470465,4.4538,229.93,229.85,12.87916728]
[1733998470668,2.28,229.93,229.87,2.1743]
[1733998470867,2.28,229.93,229.85,12.87916728]
[1733998471071,2.17419663,229.97,229.88,12.87916728]
[1733998471767,2.17419663,229.97,229.91,12.87916728]
[1733998472374,2.17419663,229.97,229.95,2.1735]
[1733998472670,2.17419663,229.97,229.88,12.87916728]
[1733998472869,2.1735,229.96,229.92,2.1738]
[1733998473070,2.17438573,229.95,229.92,2.1738]
[1733998473467,2.17438573,229.95,229.94,2.1737]
[1733998476268,2.17438573,229.95,229.88,12.87916728]
[1733998477567,2.1739,229.92,229.87,1.4124]
[1733998478980,2.1739,229.92,229.87,3.5867]
[1733998480376,2.17438573,229.95,229.87,1.4124]
[1733998480681,2.1738,229.93,229.88,2.1742]
[1733998482075,2.1737,229.94,229.89,2.1741]
[1733998482778,2.1738,229.93,229.89,2.1741]
[1733998483277,2.1737,229.94,229.9,2.174]
[1733998483478,2.17438573,229.95,229.91,12.87916728]
[1733998484080,2.17438573,229.95,229.94,15.05286728]
[1733998484485,0.19176,230.02,229.94,12.87916728]
[1733998484682,0.19176,230.02,229.97,12.87916728]
[1733998486584,0.19176,230.02,229.98,2.1733]
[1733998486980,2.36476,230.02,229.97,12.87916728]
[1733998487779,2.1731,230.01,229.97,12.87916728]
[1733998487984,0.19176,230.02,229.97,12.87916728]
[1733998489578,2.1731,230.0,229.97,12.87916728]
[1733998490585,2.28,230.04,229.91,1.332]
[1733998490979,2.28,230.04,229.91,6.48889783]
[1733998491284,2.1736,229.95,229.91,6.48889783]
[1733998491579,17.98128774,230.07,229.91,6.48889783]
[1733998491580,2.2,229.99,229.91,6.48889783]
[1733998491784,2.1735,229.96,229.91,8.66279783]
[1733998491980,2.1735,229.96,229.91,6.48889783]
[1733998493576,2.1735,229.96,229.92,2.1738]
[1733998495879,2.1734,229.97,229.92,2.1738]
[1733998498089,2.2,229.99,229.9,12.87916728]
[1733998498286,2.2,229.99,229.87,14.29156728]
[1733998498679,2.1737,229.94,229.89,2.1741]
[1733998500483,2.2,229.94,229.8,1.3659]
[1733998500692,2.2,229.94,229.82,12.87916728]
[1733998501789,2.2,229.94,229.85,12.87916728]
[1733998502288,2.174,229.91,229.86,2.1744]
[1733998502497,2.174,229.91,229.85,12.87916728]
[1733998503586,2.174,229.91,229.87,2.1743]
[1733998504489,2.2,229.94,229.85,12.87916728]
[1733998504792,2.2,229.94,229.82,12.87916728]
[1733998504995,2.2,229.94,229.85,12.87916728]
[1733998505887,2.1739,229.92,229.88,2.1742]
[1733998506093,2.1739,229.92,229.85,12.87916728]
[1733998506398,2.2,229.94,229.85,12.87916728]
[1733998506591,2.1742,229.89,229.85,12.87916728]
[1733998506790,2.2,229.94,229.8,1.3659]
[1733998507096,12.87916728,229.92,229.77,12.87916728]
[1733998507294,2.1746,229.85,229.81,2.1749]
[1733998507495,2.2,229.87,229.77,18.18166274]
[1733998507797,2.2,229.86,229.74,14.27026728]
[1733998507990,2.2,229.85,229.71,12.87916728]
[1733998508193,3.6435,229.85,229.71,12.87916728]
[1733998508393,3.6435,229.85,229.74,2.1756]
[1733998509092,2.1751,229.8,229.75,2.1755]
[1733998509393,3.6435,229.85,229.68,99.11998866]
[1733998509394,2.2,229.79,229.68,99.11998866]
[1733998509592,2.2,229.78,229.68,99.11998866]
[1733998509794,2.2,229.78,229.72,2.1758]
[1733998510091,2.2,229.78,229.68,12.87916728]
[1733998510295,2.2,229.78,229.71,12.87916728]
[1733998510698,2.1757,229.73,229.69,2.1759]
[1733998510891,2.1757,229.73,229.65,1.4023]
[1733998511091,4.3757,229.73,229.64,12.87916728]
[1733998511591,4.3757,229.73,229.67,2.1762]
[1733998511795,2.176,229.69,229.61,12.87916728]
[1733998512292,15.07916728,229.73,229.55,2.2]
[1733998512493,6.5,229.72,229.58,12.87916728]
[1733998512789,6.5,229.72,229.59,2.177]
[1733998512790,2.1765,229.65,229.59,2.177]
[1733998512992,2.2,229.65,229.58,12.87916728]
[1733998513193,2.2,229.65,229.55,15.07916728]
[1733998513390,2.2,229.65,229.55,12.87916728]
[1733998513391,2.1766,229.63,229.55,12.87916728]
[1733998513590,2.2,229.65,229.52,12.87916728]
[1733998514188,2.2,229.65,229.5,1.3369]
[1733998514493,2.2,229.65,229.48,5.22927999]
[1733998514688,2.2,229.65,229.52,12.87916728]
[1733998515091,2.1767,229.63,229.56,2.1772]
[1733998515291,2.2,229.65,229.56,2.1772]
[1733998515900,2.1768,229.61,229.56,2.1772]
[1733998516300,5.20419199,229.68,229.58,12.87916728]
[1733998516591,2.2,229.65,229.58,12.87916728]
[1733998517196,2.1765,229.64,229.58,15.05616728]
[1733998517395,2.2,229.65,229.55,12.87916728]
[1733998517593,2.2,229.65,229.51,12.87916728]
[1733998517793,12.87916728,229.63,229.5,2.2]
[1733998517997,12.87916728,229.63,229.48,19.47654727]
[1733998518192,4.172,229.62,229.48,6.59737999]
[1733998518396,4.172,229.62,229.48,14.24726728]
[1733998519397,4.172,229.62,229.48,1.3681]
[1733998519604,2.1773,229.56,229.51,2.1777]
[1733998519799,4.3773,229.56,229.51,2.1777]
[1733998520095,4.3773,229.56,229.48,1.3681]
[1733998520296,2.2,229.56,229.41,20.67505455]
[1733998520501,2.2,229.56,229.41,22.87505455]
[1733998520699,2.2,229.56,229.41,20.67505455]
[1733998520998,2.2,229.56,229.33,23.49365455]
[1733998520999,20.67505455,229.53,229.33,23.49365455]
[1733998521195,4.2109,229.52,229.33,23.49365455]
[1733998521393,2.1785,229.43,229.33,23.49365455]
[1733998521593,4.3785,229.43,229.33,23.49365455]
[1733998521797,2.2,229.43,229.32,5.17679377]
[1733998522805,4.2109,229.52,229.33,22.87505455]
[1733998522998,2.2,229.51,229.37,20.67505455]
[1733998523195,2.2,229.5,229.45,2.1783]
[1733998523399,2.2,229.5,229.41,20.67505455]
[1733998523907,2.2,229.53,229.45,20.67505455]
[1733998524102,45.28,229.61,229.45,20.67505455]
[1733998524103,4.1367,229.6,229.45,20.67505455]
[1733998524309,2.2,229.59,229.49,2.1779]
[1733998524511,2.2,229.59,229.45,20.67505455]
[1733998524903,2.1771,229.58,229.52,2.1776]
[1733998525210,2.2,229.58,229.49,20.67505455]
[1733998526109,2.2,229.58,229.45,20.67505455]
[1733998526498,2.1772,229.57,229.48,2.1779]
[1733998526697,2.1772,229.57,229.45,20.67505455]
[1733998526899,2.2,229.58,229.45,20.67505455]
[1733998527098,2.2,229.58,229.41,20.67505455]
[1733998527505,22.87505455,229.58,229.41,20.67505455]
[1733998528707,2.1778,229.51,229.41,20.67505455]
[1733998528908,2.2,229.5,229.41,20.67505455]
[1733998529310,4.3779,229.5,229.44,2.1784]
[1733998530410,2.2,229.5,229.45,2.1783]
[1733998530812,2.2,229.5,229.37,20.67505455]
[1733998531011,2.1782,229.46,229.4,2.1788]
[1733998531207,2.2,229.45,229.4,2.1788]
[1733998531612,2.2,229.45,229.42,2.1785]
[1733998532109,2.2,229.45,229.37,20.67505455]
[1733998532412,20.67505455,229.58,229.37,20.67505455]
[1733998532612,2.2,229.57,229.41,20.67505455]
[1733998533015,2.1781,229.48,229.42,2.1785]
[1733998533314,4.3781,229.48,229.42,2.1785]
[1733998533508,4.3781,229.48,229.43,2.1785]
[1733998533509,2.2,229.48,229.43,2.1785]
[1733998534209,2.2,229.48,229.37,20.67505455]
[1733998534416,2.2,229.48,229.36,2.2]
[1733998534617,2.2,229.48,229.33,22.01655455]
[1733998534618,2.2,229.48,229.34,2.2]
[1733998534915,2.1783,229.46,229.33,24.21655455]
[1733998535311,2.2,229.48,229.33,24.21655455]
[1733998535512,2.1783,229.45,229.39,2.1788]
[1733998536007,2.1783,229.45,229.33,24.21655455]
[1733998536205,2.1782,229.47,229.41,2.1787]
[1733998536410,20.67505455,229.54,229.33,24.21655455]
[1733998536610,2.2,229.53,229.37,20.67505455]
[1733998536810,2.2,229.52,229.38,3.00092953]
[1733998537018,4.3778,229.51,229.39,0.80092953]
[1733998537216,2.2,229.5,229.38,2.2]
[1733998537517,2.2,229.5,229.43,2.1785]
[1733998537910,2.2,229.5,229.38,2.2]
[1733998538111,2.2,229.5,229.33,24.21655455]
[1733998538415,2.2,229.5,229.34,0.80089374]
[1733998538713,2.2,229.5,229.33,24.21655455]
[1733998538714,2.2,229.5,229.35,0.80089374]
[1733998538911,2.2,229.5,229.36,0.80089374]
[1733998539109,2.2,229.5,229.33,24.21655455]
[1733998539310,2.178,229.48,229.42,2.1785]
[1733998540118,2.178,229.48,229.43,2.1785]
[1733998540317,2.2,229.5,229.33,24.21655455]
[1733998540510,2.2,229.5,229.34,0.80092835]
[1733998540707,2.2,229.5,229.35,0.80092835]
[1733998540915,2.2,229.5,229.36,0.80092835]
[1733998541116,2.2,229.5,229.38,2.1789]
[1733998541420,4.1077,229.49,229.38,2.1789]
[1733998541612,2.1787,229.41,229.33,1.3415]
[1733998541817,2.2,229.4,229.33,1.3415]
[1733998542311,4.3788,229.4,229.35,2.1793]
[1733998542712,2.2,229.4,229.33,1.3415]
[1733998543418,2.2,229.4,229.36,2.1792]
[1733998543813,2.2,229.39,229.33,2.1794]
[1733998544214,2.2,229.39,229.29,20.67505455]
[1733998544519,4.3789,229.39,229.3,0.80116715]
[1733998544709,4.3789,229.39,229.29,20.67505455]
[1733998544909,4.3789,229.39,229.3,0.80117372]
[1733998545115,4.3789,229.39,229.33,2.1794]
[1733998545319,2.2,229.39,229.33,2.1794]
[1733998545618,2.179,229.38,229.33,2.1794]
[1733998546114,2.2,229.39,229.25,35.67505455]
[1733998546319,2.2,229.39,229.26,0.80117716]
[1733998546516,2.2,229.39,229.25,15.0]
[1733998546716,2.7736,229.38,229.29,2.1797]
[1733998547220,20.67505455,229.42,229.29,20.67505455]
[1733998547221,2.2,229.42,229.29,20.67505455]
[1733998547409,2.2,229.43,229.33,20.67505455]
[1733998547815,2.7736,229.48,229.33,20.67505455]
[1733998548020,1.3783,229.54,229.37,20.67505455]
[1733998548323,2.2,229.5,229.46,2.1781]
[1733998548813,2.2,229.5,229.38,3.5583]
[1733998549016,2.2,229.5,229.39,0.80084142]
[1733998549212,2.2,229.5,229.38,3.5583]
[1733998549423,2.2,229.5,229.47,2.1781]
[1733998550121,2.2,229.5,229.41,2.1786]
[1733998550323,2.2,229.5,229.38,1.3583]
[1733998550623,2.1779,229.49,229.44,2.1784]
[1733998550815,2.2,229.5,229.44,2.1784]
[1733998551012,1.3953,229.57,229.41,20.67505455]
[1733998551315,1.4164,229.59,229.45,20.67505455]
[1733998551511,2.22,229.57,229.46,1.3266]
[1733998551713,2.22,229.57,229.46,2.7388]
[1733998552319,2.22,229.57,229.49,2.1779]
[1733998552620,2.22,229.57,229.46,2.7388]
[1733998553018,2.22,229.58,229.46,2.7388]
[1733998553322,2.22,229.58,229.47,2.22]
[1733998554017,2.22,229.58,229.46,2.7388]
[1733998554221,2.22,229.58,229.46,1.3266]
[1733998555020,2.22,229.58,229.49,2.1779]
[1733998555217,2.22,229.58,229.46,1.3266]
[1733998555621,2.1773,229.57,229.5,2.1777]
[1733998556023,2.1773,229.57,229.42,2.22]
[1733998556217,2.22,229.58,229.42,2.22]
[1733998556522,2.1774,229.55,229.49,2.1779]
[1733998557020,2.1774,229.55,229.42,2.22]
[1733998557021,2.22,229.54,229.42,2.22]
[1733998557425,4.3975,229.54,229.48,2.178]
[1733998558122,2.22,229.54,229.49,2.1779]
[1733998558418,2.22,229.54,229.42,2.22]
[1733998558614,2.22,229.54,229.45,20.67505455]
[1733998559023,1.4445,229.61,229.45,20.67505455]
[1733998559220,2.22,229.6,229.45,20.67505455]
[1733998559920,20.67505455,229.59,229.41,1.3224]
[1733998560219,2.178,229.49,229.43,2.1785]
[1733998560426,2.22,229.48,229.38,1.3583]
[1733998560622,20.67505455,229.55,229.38,1.3583]
[1733998560623,2.22,229.47,229.38,1.3583]
[1733998560818,2.22,229.47,229.42,2.1786]
[1733998561329,2.22,229.47,229.38,1.3583]
[1733998561923,2.22,229.47,229.38,2.7703]
[1733998562318,2.22,229.47,229.29,1.36]
[1733998562319,2.1785,229.43,229.37,2.179]
[1733998562520,2.22,229.42,229.31,20.67505455]
[1733998562825,1.4367,229.5,229.35,20.67505455]
[1733998563022,4.398,229.49,229.35,20.67505455]
[1733998563520,2.22,229.49,229.35,20.67505455]
[1733998563724,2.7072,229.54,229.35,20.67505455]
[1733998563926,2.22,229.53,229.35,20.67505455]
[1733998564118,4.3976,229.53,229.39,20.67505455]